Cogmind - Beta 16.1 @@@ ROGUE MODE // 2026.04.15 @ 13:38:40 Player: Tango Result: Destroyed by S-10 Pest with Light Assault Rifle Performance ------------- Evolutions (0) 0 Regions Visited (2) 400 Robots Destroyed (5) 25 Value Destroyed (183) 183 Prototype IDs (0) 0 Alien Tech Used (0) 0 Bonus (0) 0 TOTAL SCORE: 608 Bonus ------- None Cogmind --------- Core Integrity 0/250 Matter 295/300 Energy 79/100 System Corruption 0% Temperature Cool (0) Movement Core (100) Ox1 Location -10/Mines Parts ------- > --- POWER (1) -------- (None) > --- PROPULSION (2) --- (None) > --- UTILITY (2) ------ (None) > --- WEAPON (2) ------- Rocket Launcher > --- INVENTORY (5) ---- Wheel Compact Wheel Seismic Detector Peak State ------------ > --- POWER ------------ Ion Engine > --- PROPULSION ------- (None) > --- UTILITY ---------- Core Shielding > --- WEAPON ----------- Medium Laser Light Assault Rifle > --- INVENTORY -------- Wheel Compact Wheel Seismic Detector [Rating: 4] Favorites ----------- Power Ion Engine Engine Ion Engine Propulsion Wheel Wheel Wheel Utility Core Shielding Protection Core Shielding Weapon Medium Laser Energy Gun Medium Laser Ballistic Gun Light Assault Rifle Build | -11 -10 -10 ------- Run | Yrd Mat Min Slots Evolved . | . . . Power . | . . . Propulsion . | . . . Utility . | . . . Weapon . | . . . Parts Attached 8 | 4 3 1 Power 1 | . 1 . Engine 1 | . 1 . Core . | . . . Reactor . | . . . Propulsion 2 | 2 . . Treads . | . . . Leg . | . . . Wheel 2 | 2 . . Hover . | . . . Flight . | . . . Utility 1 | . 1 . Device . | . . . Storage . | . . . Processor . | . . . Hackware . | . . . Protection 1 | . 1 . Artifact . | . . . Weapon 4 | 2 1 1 Energy Gun 2 | 1 1 . Energy Cannon . | . . . Ballistic Gun 1 | 1 . . Ballistic Cannon . | . . . Launcher 1 | . . 1 Special Weapon . | . . . Impact Weapon . | . . . Slashing Weapon . | . . . Piercing Weapon . | . . . Special Melee Weapon . | . . . Unidentified Prototypes . | . . . Parts Lost 5 | . 4 1 Power 1 | . 1 . Propulsion . | . . . Utility 1 | . . 1 Weapon 3 | . 3 . Highest Loss Streak 2 | . 2 1 To Critical Strikes . | . . . Average Backups 2 | 2 2 3 Power . | . . . Propulsion 1 | 1 2 2 Utility . | . . 1 Weapon . | . . . Tool/Special . | . . . Unused Backups 1 | . . 1 Power . | . . . Propulsion . | . . . Utility 1 | . . 1 Weapon . | . . . Tool/Special . | . . . Average Slot Usage (%) 43 | . 46 14 Engine 10 | . 11 . Protection 9 | . 8 14 Energy Gun 13 | . 14 . Ballistic Gun 9 | . 10 . Peak Build Rating 4 | 2 4 1 Average Rating 2 | . 3 1 On Entrance 1 | . 2 1 Avg Prop Armor Cover (%) . | . . . Naked Turns . | . . . Heaviest Build 9 | 3 9 1 Greatest Support 3 | 3 3 3 Greatest Overweight (x) 2 | . 2 . Average Overweight (x) 1 | . 1 . Largest Inventory Capacity 5 | 5 5 5 Average Capacity 5 | 5 5 5 Most Carried 5 | 5 4 4 Average Carried 2 | 2 2 3 Final Capacity 5 | 5 5 5 Final Carried 3 | 3 3 3 Class Distribution -------------------- 100% | Mutant Dominant Class ---------------- Mutant | -10/Materials Mutant | -10/Mines Resources | -11 -10 -10 ----------- Run | Yrd Mat Min Matter Collected 297 | 222 75 . Remotely . | . . . Salvage Created 222 | . 222 . Parts 9 | . 9 . Haulers Intercepted . | . . . Recyclers Shooed 1 | . 1 . Parts Field Recycled . | . . . Retrieved Matter . | . . . Parts Self-Destructed . | . . . Prevented . | . . . Parts Restored . | . . . Kills | -11 -10 -10 ------- Run | Yrd Mat Min Combat Hostiles Destroyed 5 | . 5 . Guns 5 | . 5 . Classes Destroyed 1 | . 1 . Grunt 5 | . 5 . Best Kill Streak 3 | . 3 . Combat Bots Only 3 | . 3 . Max Kills in Single Turn 1 | . 1 . Gunslinging . | . . . Exploded . | . . . Melee . | . . . Uniques/NPCs Destroyed . | . . . Combat | -11 -10 -10 -------- Run | Yrd Mat Min Hostile Shots Fired 86 | . 56 30 Missed 33 | . 17 16 Hits 53 | . 39 14 Projectile 53 | . 39 14 Damage Taken 582 | . 475 107 Core 250 | . 159 91 Absorbed by Shields . | . . . Redirected to Shielding 51 | . 35 16 Core Remaining (%) 100 | 100 . . Volleys Fired 37 | . 37 . Largest 2 | . 2 . Hottest 90 | . 90 . Shots Fired 59 | . 59 . Gun 59 | . 59 . Cannon . | . . . Launcher . | . . . Special . | . . . Kinetic 18 | . 18 . Thermal 37 | . 37 . Explosive . | . . . Electromagnetic 4 | . 4 . Robot Hit Streak 8 | . 8 . Robot Miss Streak 2 | . 2 . Penetration Max . | . . . Secondary Targets . | . . . Shots Hit Robots 38 | . 38 . Core Hits 13 | . 13 . Critical Kills . | . . . Critical Parts Destroyed . | . . . Critical Strikes 5 | . 5 . Burn 5 | . 5 . Melee Attacks . | . . . Impact . | . . . Slashing . | . . . Piercing . | . . . Sneak Attacks . | . . . Combat Hostiles . | . . . Follow-up Attacks . | . . . Damage Inflicted 429 | . 429 . Guns 429 | . 429 . Cannons . | . . . Explosions . | . . . Melee . | . . . Ramming . | . . . Kinetic 100 | . 100 . Thermal 288 | . 288 . Explosive . | . . . Electromagnetic 41 | . 41 . Impact . | . . . Slashing . | . . . Piercing . | . . . Highest Corruption . | . . . Average Corruption . | . . . Corruption Purged . | . . . Corruption Blocked . | . . . Overload Shots . | . . . Overflow Damage . | . . . Projectiles . | . . . Explosions . | . . . Melee . | . . . Knockbacks . | . . . Impact . | . . . Kinetic . | . . . Secondary . | . . . Self-Inflicted Damage . | . . . Shots . | . . . Rammed 1 | . 1 . Targets Rammed 1 | . 1 . Kicked . | . . . Crushed . | . . . Highest Temperature 204 | . 204 . Average Temperature 83 | . 83 . Received Heat Transfer 258 | . 258 . Siege Activations . | . . . Martial Activations . | . . . Shielding Activations . | . . . Robots Disrupted . | . . . Combat Hostiles . | . . . Robots Corrupted . | . . . Combat Hostiles . | . . . Parts Fried . | . . . Impact Corruptions . | . . . Robots Melted . | . . . Combat Hostiles . | . . . Parts Melted 2 | . 2 . Heat Transferred 1221 | . 1221 . Parts Sabotaged . | . . . Parts Stolen . | . . . Parts Stripped . | . . . Power Chain Reactions . | . . . Alert | -11 -10 -10 ------- Run | Yrd Mat Min Maximum Alert Level . | . . . Low Security (%) 100 | 100 100 100 Level 1 . | . . . Level 2 . | . . . Level 3 . | . . . Level 4 . | . . . Level 5 . | . . . High Security . | . . . Max Security . | . . . Peak Influence 60 | . 60 28 Initial 13 | . . 13 Average 14 | . 15 18 Influence Increases 174 | . 159 15 Destroy 0b10 Robot/C 100 | . 100 . Destroy Leader 20 | . 20 . Successful Hack 9 | . 9 . Lose Combat Pursuer 45 | . 30 15 Influence Decreases 166 | . 124 42 Entered New Map 22 | . . 22 Time Decay 94 | . 84 10 Lost Part 50 | . 40 10 Squads Dispatched 2 | . 2 . Investigation 1 | . 1 . Extermination . | . . . Reinforcement 1 | . 1 . Assault . | . . . Garrison . | . . . Intercept . | . . . Searches Triggered . | . . . Construction Impeded . | . . . Haulers Reinforced . | . . . Active Scanning Responses . | . . . Cargo Convoy Interrupts . | . . . Stealth | -11 -10 -10 --------- Run | Yrd Mat Min Distress Signals . | . . . Communications Jammed . | . . . Distress Signals . | . . . Times Spotted 17 | . 10 7 Peak Tracking Total 6 | . 3 6 Tactical Retreats 2 | . 1 1 Traps | -11 -10 -10 ------- Run | Yrd Mat Min Traps Triggered 1 | . 1 . Indirectly . | . . . Trap Hack Attempts . | . . . Triggered . | . . . Disarmed . | . . . Reprogrammed . | . . . Reused . | . . . Traps Extracted . | . . . Installed . | . . . Triggered . | . . . Machines | -11 -10 -10 ---------- Run | Yrd Mat Min Machines Disabled . | . . . Max in Single Turn . | . . . Machines Repaired . | . . . Machines Dismantled . | . . . Machines Sabotaged . | . . . Overloaded Fab Kills . | . . . Hacking | -11 -10 -10 --------- Run | Yrd Mat Min Machines Accessed 2 | . 2 . Terminals 2 | . 2 . Fabricators . | . . . Repair Stations . | . . . Recycling Units . | . . . Scanalyzers . | . . . Garrison Access . | . . . Total Hacks 10 | . 10 . Successful 6 | . 6 . Failed 4 | . 4 . Catastrophic 1 | . 1 . Database Lockouts . | . . . Manual . | . . . Terminals 10 | . 10 . Fabricators . | . . . Repair Stations . | . . . Recycling Units . | . . . Scanalyzers . | . . . Garrison Access . | . . . Terminal Hacks 6 | . 6 . Record 4 | . 4 . Alert Level 1 | . 1 . Hauler Manifests 1 | . 1 . Fabricator Hacks . | . . . Repair Station Hacks . | . . . Recycling Unit Hacks . | . . . Scanalyzer . | . . . Garrison Access Hacks . | . . . Unauthorized Hacks . | . . . Terminals . | . . . Fabricators . | . . . Repair Stations . | . . . Recycling Units . | . . . Scanalyzers . | . . . Garrison Access . | . . . Data Cores Recovered . | . . . Used . | . . . Hacking Detections 2 | . 2 . Full Trace Events 1 | . 1 . Feedback Events . | . . . Feedback Blocked . | . . . Robot Schematics Acquired . | . . . Robots Built . | . . . Authchips . | . . . Time . | . . . Total Robot Build Rating . | . . . Part Schematics Acquired . | . . . Parts Built . | . . . Authchips . | . . . Time . | . . . Total Part Build Rating . | . . . Part Studies Acquired . | . . . Parts Repaired . | . . . Time . | . . . Parts Recycled . | . . . Recycled Matter . | . . . Retrieved Matter . | . . . Retrieved Components . | . . . Parts Scanalyzed . | . . . Part Schematics Acquired . | . . . Parts Damaged . | . . . Bothacking | -11 -10 -10 ------------ Run | Yrd Mat Min Used RIF Installer . | . . . Robots Hacked . | . . . Non-combat . | . . . Combat . | . . . Robot Hacks Applied . | . . . Relay Couplers Released . | . . . Fabnet Peak Effective % . | . . . Robots Rewired . | . . . Allies Hacked . | . . . Hacks Repelled . | . . . Allies | -11 -10 -10 -------- Run | Yrd Mat Min Total Allies . | . . . Largest Group . | . . . Highest-Rated Group . | . . . Highest-Rated Ally . | . . . Total Orders . | . . . Ally Attacks . | . . . Total Damage . | . . . Kills . | . . . Allies Corrupted . | . . . Allies Melted . | . . . Intel | -11 -10 -10 ------- Run | Yrd Mat Min Active Infowar (turns) . | . . . Robot Analysis Total . | . . . Derelict Logs Recovered . | . . . Drone Launches . | . . . Drone Recoveries . | . . . Exploration | -11 -10 -10 ------------- Run | Yrd Mat Min Turns Passed 414 | 31 353 30 Spaces Moved 289 | 36 198 55 Core 289 | 36 198 55 Treads . | . . . Legs . | . . . Wheels . | . . . Hover . | . . . Flight . | . . . Fastest Speed 50 | 50 50 50 Average Speed 103 | 50 128 50 Slowest Speed 150 | 50 150 50 Overloaded Moves . | . . . Propulsion Burnouts . | . . . Robots Hopped . | . . . Potential Cave-ins . | . . . Cave-ins Triggered . | . . . Exploration Rate (%) 20 | 4 34 23 Regions Visited 2 Branch Regions 1 Pre-discovered Areas . | . . . Known Exits Taken . | . . . Unknown Exits Taken 2 | 1 1 . Scrap Searched 1 | . . 1 Spaces Dug . | . . . Terrain Destroyed . | . . . Melee . | . . . Projectile . | . . . AOE . | . . . Terrain Rammed . | . . . Walls Destroyed . | . . . Machines Disabled . | . . . Actions | -11 -10 -10 --------- Run | Yrd Mat Min Total 349 | 50 241 58 Wait 1 | . . 1 Move 287 | 35 197 55 Hop . | . . . Pick Up 9 | 5 3 1 Fast Attach . | . . . Attach 10 | 6 3 1 Detach 4 | 4 . . Swap . | . . . Drop . | . . . Fire 37 | . 37 . Melee . | . . . Ram 1 | . 1 . Kick . | . . . Crush . | . . . Escape Stasis . | . . . Rewire . | . . . Trap . | . . . Miscellaneous . | . . . Route ------- -11/Scrapyard -10/Materials -10/Mines History --------- Turn | Location | Event 14 | -11/Scrapyard | Discovered new exit (range 16) 32 | -11/Scrapyard | Entered Materials 308 | -10/Materials | Build established: Mutant 328 | -10/Materials | Discovered new exit (range 6) 359 | -10/Materials | Core integrity fell below 50% 385 | -10/Materials | Entered Mines 401 | -10/Mines | Core integrity fell below 20% 412 | -10/Mines | Received a Rocket Launcher from a helpful Derelict 415 | -10/Mines | Destroyed by S-10 Pest with Light Assault Rifle Last Messages --------------- 00408_ Searching scrap... 00408_ Found Med. Laser. 00408_ Found Lgt. Armor Plating. 00408_ Found EM Pulse Gun. 00408_ Found 36 Matter. 00409_ 0N-JJ0(g): "Everyone knows a good old rocket launcher goes a long way." 00410_ 0N-JJ0(g): "Need to get rid of a swarm? Done. Need a big hole in the wall? Done." 00411_ 0N-JJ0(g): "Need a small hole in the wall? Leave that to the mining laser wimps, I say!" 00412_ 0N-JJ0(g): "Would you like a rocket launcher? I know I would if I were you, so I'm going to lend you mine." 00412_ 0N-JJ0(g) slips back into the shadows. 00412_ S-10 Pest destroyed. 00413_ Acquired Rocket Launcher. 00415_ S-10 Pest destroyed. 00415_ Core Shielding destroyed. Map ----- +----------------------------------------------------+ | #?# """ """ """ #???????????????? | | # ####### ### """ """ """ #???????????????? | | #######?????# """ """ """ #???????????????? | | ????????????# #???????????????? | | ????????????##### """ """ """ #???????????????? | | ????????????????# """ """ """ #???????????????? | | ????????????????# """ """ """ #???????????????? | | ????????????????# #???????????????? | | ????????????????# """ """ """ #???????????????? | | ????????????????# """ """ """ #???????????????? | | ????????????????# """ """ """ #???????????????? | | ????????????????# #???????????????? | | ????????????????######### s#######???????????????? | | ????????????????????????# #?????????????????????? | | ????????????????????????#=%#?????????????????????? | | ????????????????????????# [#?????????????????????? | | ????????????????????????# s#?????????????????????? | | ????????????????????????# #?????????????????????? | | ????????????????????????#[!#?????????????????????? | | ????????????????????????# s#?????????????????????? | | ????????????????????????# [#?????????????????????? | | ????????????????????????#s%#?????????????????????? | | ????????????????????????# =#?????????????????????? | | ????????????????????????# #?????????????????????? | | ??????????????????????### #?????????????????????? | | ??????????????????????# @ #?????????????????????? | | ?????????????????????# #?????????????????????? | | ?????????????????????# #?????????????????????? | | ?????????????????????## ?????????????????????? | | ??????????????????????## ????????????????????? | | ???????????????????????# #???????????????????? | | ???????????????????????## ???????????????????? | | ????????????????????????#### ??????????????????? | | ????????????????????????????# #?????????????????? | | ?????????????????????????????# #?????????????????? | | ?????????????????????????????? #?????????????????? | | ???????????????????????????????#?????????????????? | | ?????????????????????????????????????????????????? | | ?????????????????????????????????????????????????? | | ?????????????????????????????????????????????????? | | ?????????????????????????????????????????????????? | | ?????????????????????????????????????????????????? | | ?????????????????????????????????????????????????? | | ?????????????????????????????????????????????????? | | ?????????????????????????????????????????????????? | | ?????????????????????????????????????????????????? | | ?????????????????????????????????????????????????? | | ?????????????????????????????????????????????????? | | ?????????????????????????????????????????????????? | | ?????????????????????????????????????????????????? | +----------------------------------------------------+ Best States ------------- Heat Dissipation 25 Energy Generation 10 Energy Capacity 250 Matter Stores 300 Matter Capacity 300 Sight Range 16 Terrain Scan Density 10 Core Shielding 20 Evasion (%) 50 Item Schematics ----------------- None Robot Schematics ------------------ None Fabricated ------------ Nothing Repaired ---------- Nothing Studied --------- None Alien Tech Used ----------------- None Achievements -------------- None Challenges ------------ None Game ------ Seed MicrowarpElectrostormShifter Manual? 0 Play Time 00:06:54 Cumulative 24.5 hours Start 2026.04.15 @ 13:32:53 End 2026.04.15 @ 13:38:40 Sessions 1 Manual Loads 0 Difficulty Rogue Special Mode None Game No. 39 Rogue 29 Adventurer 10 Explorer 0 Win Type - Total 0 Types 0/0/0/0/0/0/0/0/0/0 Lore% 10 Gallery% 20 Achievement% 14 Wizard Run 0 Options --------- Layout 1 ASCII 0 Keyboard 0 Movement Mouse Keybinds 0 Fullscreen 1 Font 24/Smallcaps Map View 50x35 Zoom Use 0% Tactical HUD 1 Map Filters NONE Filters NONE Steam 1 RUN: 4389ba66-4b67-40ed-8059-986fe3398e32